bitfinex-derivatives/quotes_ETHF0:USTF0_20210406
["timestamp","ask_amount","ask_price","bid_price","bid_amount"]
[1617706327398,32.7357,2118.2,2117.5,5.83]
[1617706327598,2.90695,2117.6,2117.5,5.83]
[1617706327798,2.90695,2117.6,2117.4,0.9425]
[1617706328000,2.90695,2117.6,2117.5,5.76]
[1617706329299,2.90695,2117.6,2117.2,5.71]
[1617706329699,2.90695,2117.3,2117.2,5.71]
[1617706330901,2.90695,2117.3,2117.2,6.6605]
[1617706331302,2.90695,2117.3,2117.0,5.87]
[1617706331603,2.90695,2117.3,2117.2,5.79]
[1617706332003,2.90695,2117.3,2117.0,5.7]
[1617706332203,2.90695,2117.3,2117.2,5.68]
[1617706332402,2.90695,2117.3,2117.2,6.6139]
[1617706332606,2.90695,2117.3,2117.2,0.9339]
[1617706332904,3.84815,2117.3,2117.2,6.7739]
[1617706333406,2.90695,2117.3,2117.2,5.84]
[1617706334006,2.90695,2117.3,2117.0,5.9]
[1617706334206,2.90695,2117.3,2117.2,5.83]
[1617706334505,2.90695,2117.3,2117.2,0.9363]
[1617706334706,2.90695,2117.3,2117.0,5.77]
[1617706334905,2.90695,2117.3,2117.2,5.67]
[1617706335107,2.90695,2117.3,2117.0,5.87]
[1617706337707,2.90695,2117.3,2117.2,2.90695]
[1617706338110,2.90695,2117.3,2117.2,8.81695]
[1617706342316,2.90695,2117.3,2117.2,9.77205]
[1617706342515,2.90695,2117.3,2117.2,8.81695]
[1617706346118,2.90695,2117.3,2117.2,9.77085]
[1617706346322,2.90695,2117.3,2117.2,8.81695]
[1617706347318,2.90695,2117.3,2117.2,9.75395]
[1617706347520,2.90695,2117.3,2117.2,8.81695]
[1617706351224,2.90695,2117.3,2117.2,9.76215]
[1617706351424,2.90695,2117.3,2117.2,8.81695]
[1617706352425,2.90695,2117.3,2117.2,9.74745]
[1617706352926,2.90695,2117.3,2117.2,8.81695]
[1617706358936,2.90695,2117.3,2117.2,75.58375]
[1617706361340,2.90695,2117.3,2117.2,76.52355]
[1617706362040,2.90695,2117.3,2117.2,9.75675]
[1617706362242,2.90695,2117.3,2117.2,8.81695]
[1617706376951,2.90695,2117.3,2117.2,5.91]
[1617706377354,2.90695,2117.3,2116.5,2.571]
[1617706377355,2.90695,2117.3,2116.6,5.73]
[1617706377802,2.90695,2117.3,2117.2,5.83]
[1617706377992,2.90695,2117.3,2116.7,5.8]
[1617706378173,2.90695,2116.8,2116.7,8.70695]
[1617706378423,4.90635,2116.8,2116.2,3.45]
[1617706378555,34.90635,2116.8,2116.7,0.35]
[1617706378799,34.90635,2116.8,2116.4,5.92]
[1617706378963,2.0,2116.7,2116.2,5.71]
[1617706379196,30.0,2116.6,2116.5,3.1889]
[1617706379470,32.0,2116.6,2116.0,5.53]
[1617706379657,32.0,2116.6,2115.3,4.95400966]
[1617706379858,30.0,2116.6,2116.5,5.59]
[1617706380057,30.0,2116.6,2116.4,5.77]
[1617706380358,30.0,2116.6,2116.5,0.03]
[1617706380757,30.0,2116.6,2115.8,5.69]
[1617706380965,30.0,2116.6,2116.5,5.68]
[1617706381361,30.0,2116.6,2115.7,5.78]
[1617706381659,108.993,2116.6,2116.5,5.79]
[1617706382060,108.993,2116.6,2116.0,5.94]
[1617706382260,108.993,2116.6,2116.5,5.87]
[1617706382663,108.993,2116.6,2116.0,5.69]
[1617706382860,108.993,2116.6,2116.5,5.94]
[1617706383262,108.993,2116.6,2115.9,66.1527]
[1617706383464,108.993,2116.6,2116.5,5.8]
[1617706383765,108.993,2116.6,2116.0,2.88]
[1617706383965,78.993,2116.6,2116.3,5.83]
[1617706384171,78.993,2116.6,2116.5,5.86]
[1617706384366,78.993,2116.6,2116.0,2.96]
[1617706384777,78.993,2116.6,2116.3,5.76]
[1617706385170,78.993,2116.6,2116.0,5.66]
[1617706385369,78.993,2116.6,2116.4,5.82]
[1617706385567,78.993,2116.6,2116.1,5.83]
[1617706385875,78.993,2116.6,2116.0,69.6932]
[1617706386075,78.993,2116.6,2116.5,5.84]
[1617706386366,81.89995,2116.6,2116.1,5.92]
[1617706386570,81.89995,2116.6,2116.5,5.67]
[1617706387069,81.89995,2116.6,2116.0,69.6932]
[1617706387267,81.89995,2116.6,2116.5,5.81]
[1617706387467,81.89995,2116.6,2116.1,5.69]
[1617706387670,82.83475,2116.6,2116.1,5.69]
[1617706387868,81.89995,2116.6,2116.5,5.69]
[1617706388167,81.89995,2116.6,2116.1,5.9]
[1617706388384,81.89995,2116.6,2116.5,5.93]
[1617706388779,81.89995,2116.6,2116.1,5.77]
[1617706388972,81.89995,2116.6,2116.5,5.95]
[1617706389267,81.89995,2116.6,2116.1,5.72]
[1617706389568,81.89995,2116.6,2116.0,5.9]
[1617706390192,2.90695,2116.1,2116.0,5.9]
[1617706397576,2.90695,2116.1,2116.0,6.8336]
[1617706398578,2.90695,2116.1,2116.0,5.9]
[1617706400682,2.90695,2116.1,2116.0,6.8571]
[1617706400883,2.90695,2116.1,2116.0,5.9]
[1617706422118,2.90695,2116.1,2116.0,8.144]
[1617706422720,78.993,2116.6,2116.0,8.144]
[1617706423922,30.0,2117.4,2116.0,8.144]
[1617706424324,30.0,2117.4,2116.7,72.6751]
[1617706424524,2.90695,2116.8,2116.7,72.6751]
[1617706424928,2.90695,2116.8,2116.7,78.6051]
[1617706426859,2.90695,2116.8,2116.7,5.93]
[1617706427272,2.90695,2116.8,2116.0,5.87]
[1617706427463,2.90695,2116.8,2116.7,5.69]
[1617706427736,2.90695,2116.8,2115.9,2.90695]
[1617706427979,2.90695,2116.8,2116.7,68.3224]
[1617706428151,2.90695,2116.8,2116.7,74.2624]
[1617706428337,2.90695,2116.8,2116.7,68.3224]
[1617706428737,2.90695,2116.8,2116.7,74.2724]
[1617706431037,2.90695,2116.8,2116.7,5.95]
[1617706431538,2.90695,2116.8,2116.4,5.89]
[1617706431738,2.90695,2116.8,2116.7,5.92]
[1617706431939,2.90695,2116.8,2116.4,5.87]
[1617706432340,2.90695,2116.8,2116.7,5.67]
[1617706432541,2.90695,2116.8,2116.6,2.90695]
[1617706432742,2.90695,2116.8,2116.4,5.82]
[1617706432943,2.90695,2116.8,2116.7,5.72]
[1617706433146,2.90695,2116.8,2115.7,2.0]
[1617706433344,2.90695,2116.8,2116.4,5.87]
[1617706433543,2.90695,2116.8,2116.7,5.74]
[1617706433850,2.90695,2116.8,2116.5,5.89]
[1617706434249,2.90695,2116.8,2116.7,5.81]
[1617706434444,2.90695,2116.8,2116.6,5.81]
[1617706434845,2.90695,2116.8,2116.3,2.90695]
[1617706435046,2.90695,2116.8,2116.7,5.69]
[1617706435346,2.90695,2116.8,2116.5,57.0647]
[1617706435549,2.90695,2116.8,2116.5,62.9647]
[1617706435861,2.90695,2116.8,2116.7,5.91]
[1617706436046,2.90695,2116.8,2116.5,59.4738]
[1617706436250,2.90695,2116.8,2116.7,5.92]
[1617706436646,2.90695,2116.8,2116.5,59.4738]
[1617706436846,2.90695,2116.8,2116.7,5.89]
[1617706437247,2.90695,2116.8,2116.5,59.4738]
[1617706437448,2.90695,2116.8,2116.6,5.78]
[1617706447058,2.90695,2116.8,2116.5,5.94]
[1617706447259,2.90695,2116.8,2116.7,5.75]
[1617706447659,2.90695,2116.8,2116.6,5.92]
[1617706447863,2.90695,2116.8,2116.7,5.74]
[1617706448163,2.90695,2116.8,2116.5,0.3]
[1617706448461,2.90695,2116.8,2116.4,69.6256]
[1617706448665,30.0,2117.2,2116.7,5.76]
[1617706448861,30.0,2117.2,2116.5,5.77]
[1617706450263,30.0,2117.5,2116.5,5.77]
[1617706450665,30.0,2117.5,2116.6,2.90695]
[1617706450964,30.0,2117.5,2116.6,8.66695]
[1617706451373,2.0,2118.2,2116.6,8.66695]
[1617706451566,30.0,2118.1,2116.6,8.66695]
[1617706451766,30.0,2118.1,2117.3,54.7591]
[1617706452170,30.0,2118.1,2117.4,5.78]
[1617706452571,2.90695,2117.5,2117.4,5.78]
[1617706453174,3.84805,2117.5,2117.4,5.78]
[1617706453373,2.90695,2117.5,2117.4,5.78]
[1617706453573,2.90695,2117.5,2116.7,5.8]
[1617706453975,2.90695,2117.5,2117.4,5.92]
[1617706454174,2.90695,2117.5,2116.7,5.67]
[1617706454577,0.9421,2117.7,2117.4,5.9]
[1617706454875,0.9421,2117.7,2116.7,5.68]
[1617706455077,0.9421,2117.7,2117.5,5.86]
[1617706455277,34.8932,2118.1,2117.5,5.86]
[1617706455278,66.8037,2117.9,2117.5,5.86]
[1617706455578,96.8037,2117.9,2116.8,75.4802]
[1617706455879,96.8037,2117.9,2117.6,5.83]
[1617706456078,96.8037,2117.9,2116.9,5.92]
[1617706456278,96.8037,2117.9,2117.7,5.93]
[1617706456683,30.0,2117.7,2116.9,5.73]
[1617706457179,30.9311,2117.7,2116.8,69.8102]
[1617706457381,30.9311,2117.7,2117.0,5.88]
[1617706457680,30.9311,2117.7,2116.9,5.94]
[1617706457880,30.0,2117.7,2117.1,5.88]
[1617706458280,30.0,2117.7,2116.9,5.68]
[1617706458482,30.0,2117.7,2117.2,5.72]
[1617706458683,2.90695,2117.3,2117.2,5.72]
[1617706458881,2.90695,2117.3,2116.9,5.88]
[1617706459081,2.90695,2117.3,2117.2,5.73]
[1617706459482,2.90695,2117.3,2116.9,5.7]
[1617706459682,2.90695,2117.3,2117.2,5.91]
[1617706460083,2.90695,2117.3,2116.9,5.81]
[1617706460386,2.90695,2117.3,2117.2,5.91]
[1617706460784,2.90695,2117.3,2116.9,5.86]
[1617706460986,2.90695,2117.3,2117.2,5.7]
[1617706461385,2.90695,2117.3,2117.2,2.3426]
[1617706461588,2.90695,2117.3,2117.2,8.0926]
[1617706463089,2.90695,2117.3,2117.2,5.75]
[1617706463493,2.90695,2117.3,2116.6,5.76]
[1617706463892,2.90695,2117.3,2117.2,5.82]
[1617706464301,2.90695,2117.3,2116.3,5.81]
[1617706464703,0.01391907,2117.5,2117.2,5.72]
[1617706464898,0.01391907,2117.5,2116.3,5.8]
[1617706465298,0.01391907,2117.5,2117.3,5.66]
[1617706465501,0.01392013,2117.4,2116.3,5.87]
[1617706465906,0.01392013,2117.4,2116.2,4.90695]
[1617706466308,0.01392087,2117.3,2116.4,5.92]
[1617706466601,0.01392031,2117.4,2116.4,2.8234]
[1617706466804,0.01392031,2117.4,2116.5,8.57695]
[1617706467001,0.01391967,2117.5,2116.5,8.57695]
[1617706467517,63.6137,2117.4,2116.5,8.57695]
[1617706468704,2.90695,2116.6,2116.5,8.57695]
[1617706472008,2.90695,2116.6,2116.5,9.52475]
[1617706472609,2.90695,2116.6,2116.5,8.57695]
[1617706476011,0.01391531,2117.7,2116.5,8.57695]
[1617706476429,0.01391531,2117.7,2116.6,2.0]
[1617706476824,0.01391531,2117.7,2116.9,2.90695]
[1617706477212,0.01391531,2117.7,2117.0,5.94]
[1617706478915,2.90695,2117.1,2117.0,5.94]
[1617706486619,2.90695,2117.1,2117.0,6.8966]
[1617706488420,3.84015,2117.1,2117.0,6.8966]
[1617706489621,2.90695,2117.1,2117.0,8.8966]
[1617706489819,2.90695,2117.1,2117.0,7.94]
[1617706490820,56.9728,2117.5,2117.0,7.94]
[1617706491021,2.90695,2117.5,2117.4,2.90695]
[1617706491523,2.90695,2117.5,2117.4,8.63695]
[1617706492724,3.84425,2117.5,2117.4,8.63695]
[1617706492925,2.90695,2117.5,2117.4,8.63695]
[1617706497032,5.06805,2117.5,2117.4,5.73]
[1617706497234,5.06805,2117.5,2117.3,5.88]
[1617706497435,5.06805,2117.5,2117.4,5.78]
[1617706497836,5.06805,2117.5,2117.3,5.92]
[1617706498035,5.06805,2117.5,2117.4,5.73]
[1617706498335,5.06805,2117.5,2117.3,5.91]
[1617706498634,5.06805,2117.5,2117.4,5.74]
[1617706498837,5.06805,2117.5,2117.4,0.1382]
[1617706499138,5.06805,2117.5,2117.3,5.86]
[1617706499363,5.06805,2117.5,2117.4,5.72]
[1617706499540,5.06805,2117.5,2117.3,5.78]
[1617706499742,6.00145,2117.5,2117.3,5.78]
[1617706499942,6.00145,2117.5,2116.9,5.68]
[1617706499943,2.90695,2117.5,2117.4,5.87]
[1617706500139,2.90695,2117.5,2116.8,2.90695]
[1617706500340,2.90695,2117.5,2117.0,5.83]
[1617706500642,2.90695,2117.5,2117.4,5.91]
[1617706500840,2.90695,2117.5,2116.8,2.90695]
[1617706501040,2.90695,2117.5,2117.4,5.67]
[1617706501240,0.01389299,2118.0,2117.4,5.67]
[1617706501443,0.01389299,2118.0,2116.7,72.3178]
[1617706501749,0.01389342,2117.9,2116.9,5.76]
[1617706501941,0.01389342,2117.9,2116.8,5.8]
[1617706503142,2.90695,2116.9,2116.8,5.8]
[1617706503342,4.92185,2116.9,2116.8,5.8]
[1617706504243,4.92185,2116.9,2116.5,5.9]
[1617706504444,4.92185,2116.9,2116.8,5.9]
[1617706504846,4.92185,2116.9,2116.1,2.0]
[1617706505044,4.92185,2116.9,2116.8,5.94]
[1617706505244,2.0149,2116.9,2116.8,5.94]
[1617706505445,2.0149,2116.9,2116.7,69.7671]
[1617706505648,2.0149,2116.9,2116.8,5.75]
[1617706507248,4.92185,2116.9,2116.8,5.75]
[1617706508851,2.90695,2116.9,2116.5,5.92]
[1617706509251,71.5453,2117.4,2116.8,5.91]
[1617706509452,71.5453,2117.4,2116.5,5.89]
[1617706509755,71.5453,2117.4,2116.9,5.68]
[1617706510159,71.5453,2117.4,2116.5,5.91]
[1617706511158,2.90695,2116.6,2116.5,5.91]
[1617706512257,2.90695,2116.6,2116.2,7.81]
[1617706512877,2.90695,2116.6,2116.3,62.9846]
[1617706513072,2.90695,2116.6,2116.3,68.6946]
[1617706513259,2.90695,2116.6,2116.4,2.90695]
[1617706513666,2.90695,2116.6,2116.5,5.75]
[1617706514961,0.01389857,2117.9,2116.5,7.6094]
[1617706515174,0.01389857,2117.9,2117.0,2.90695]
[1617706515363,0.01389857,2117.9,2117.0,5.59635]
[1617706515561,0.0138978,2118.0,2117.1,5.78]
[1617706516061,65.5012956,2118.1,2117.1,5.78]
[1617706516062,0.01389708,2118.1,2117.1,5.78]
[1617706516662,0.01389716,2118.0,2117.1,5.78]
[1617706516862,0.01389716,2118.0,2117.1,66.9281]
[1617706517162,2.90695,2117.2,2117.1,66.9281]
[1617706518966,2.90695,2117.2,2117.1,5.78]
[1617706519166,32.90695,2117.2,2116.6,0.9329]
[1617706519470,32.90695,2117.2,2117.1,3.8569]
[1617706519670,32.90695,2117.2,2116.7,5.83]
[1617706519870,34.92085236,2117.2,2116.0,5.92]
[1617706520070,34.92085236,2117.2,2117.1,3.33]
[1617706520271,34.93475591,2117.2,2117.1,3.33]
[1617706520567,34.93475591,2117.2,2116.0,5.26]
[1617706520768,34.93475591,2117.2,2117.1,3.99]
[1617706520969,34.93475591,2117.2,2115.4,5.95]
[1617706521169,32.02780591,2117.2,2116.1,5.78]
[1617706521373,32.02780591,2117.2,2117.1,5.76]
[1617706521669,32.02780591,2117.2,2115.4,5.75]
[1617706521870,32.02780591,2117.2,2117.1,5.76]
[1617706522271,32.02780591,2117.2,2115.4,5.93]
[1617706522471,32.02780591,2117.2,2117.1,5.85]
[1617706522873,32.02780591,2117.2,2115.4,5.9]
[1617706523072,32.02780591,2117.2,2117.1,5.78]
[1617706523373,32.01388929,2117.2,2115.4,5.78]
[1617706523575,32.01388929,2117.2,2116.5,5.71]
[1617706523872,32.0,2117.2,2117.1,5.87]
[1617706524172,32.0,2117.2,2116.6,5.82]
[1617706524373,32.0,2117.2,2117.1,5.77]
[1617706524574,32.0,2117.2,2115.4,5.72]
[1617706524774,32.0,2117.2,2116.7,5.8]
[1617706524974,32.0,2117.2,2117.1,5.9]
[1617706525175,34.90695,2117.2,2115.4,5.69]
[1617706525377,34.90695,2117.2,2116.8,5.74]
[1617706525575,34.90695,2117.2,2117.1,5.91]
[1617706525774,34.90695,2117.2,2115.4,5.79]
[1617706526076,34.90695,2117.2,2116.9,4.0799]
[1617706526275,34.90695,2117.2,2115.4,4.9011]
[1617706526579,34.92083995,2117.2,2117.1,5.87]
[1617706526779,34.92083995,2117.2,2117.0,5.85]
[1617706527079,34.93473288,2117.2,2117.1,2.436]
[1617706527279,34.93473288,2117.2,2114.5,2.90695]
[1617706527479,34.93473288,2117.2,2117.1,2.909]
[1617706527480,34.96251706,2117.2,2117.1,2.909]
[1617706527681,34.96251706,2117.2,2115.0,5.89]
[1617706527882,34.96251706,2117.2,2114.3,8.65807874]
[1617706527883,35.3515468,2117.2,2114.3,2.571]
[1617706528182,0.01389418,2116.5,2114.3,2.571]
[1617706528384,3.51229418,2116.5,2114.4,5.82]
[1617706528592,69.8963,2114.8,2114.4,5.82]
[1617706529187,2.90695,2114.5,2114.4,5.82]
[1617706532390,2.90695,2114.5,2114.3,5.82]
[1617706532591,2.90695,2114.5,2114.3,6.7532]
[1617706532793,2.90695,2114.5,2114.4,5.9]
[1617706532991,2.90695,2114.5,2114.3,5.7]
[1617706533398,2.90695,2114.5,2114.4,5.67]
[1617706533596,2.90695,2114.5,2114.3,5.81]
[1617706533993,2.90695,2114.5,2114.4,5.72]
[1617706534193,2.90695,2114.5,2114.3,5.95]
[1617706534494,2.90695,2114.5,2114.2,15.71095]
[1617706534495,2.90695,2114.5,2114.4,5.85]
[1617706534894,2.90695,2114.5,2114.3,5.92]
[1617706535094,2.90695,2114.5,2114.4,5.73]
[1617706535495,2.90695,2114.5,2114.3,5.78]
[1617706535695,2.90695,2114.5,2114.4,5.86]
[1617706535995,2.90695,2114.5,2114.3,5.72]
[1617706536396,2.90695,2114.5,2114.4,5.9]
[1617706536596,2.90695,2114.5,2114.4,0.9439]
[1617706536810,2.90695,2114.5,2114.3,5.88]
[1617706537006,2.90695,2114.5,2114.4,5.93]
[1617706537204,2.90695,2114.5,2114.3,5.86]
[1617706537599,2.90695,2114.5,2114.4,5.74]
[1617706538012,2.90695,2114.5,2114.3,5.73]
[1617706538203,2.90695,2114.5,2114.4,5.71]
[1617706538607,2.90695,2114.5,2114.3,5.89]
[1617706538798,2.90695,2114.5,2114.4,5.9]
[1617706539220,2.90695,2114.5,2114.3,5.88]
[1617706539405,2.90695,2114.5,2114.4,5.82]
[1617706539817,2.90695,2114.5,2114.3,5.92]
[1617706540007,2.90695,2114.5,2114.4,5.76]
[1617706540409,2.90695,2114.5,2114.4,67.428]
[1617706540811,2.90695,2114.5,2114.4,73.118]
[1617706543614,2.90695,2114.5,2114.4,5.69]
[1617706544014,2.90695,2114.5,2114.3,5.68]
[1617706544217,2.90695,2114.5,2114.4,5.89]
[1617706544516,2.90695,2114.5,2114.3,5.76]
[1617706545016,2.90695,2114.5,2114.4,5.93]
[1617706545216,2.90695,2114.5,2114.3,5.95]
[1617706545518,2.90695,2114.5,2114.2,94.18915]
[1617706545519,2.90695,2114.5,2114.4,5.81]
[1617706545720,2.90695,2114.5,2114.3,5.91]
[1617706546020,2.90695,2114.5,2114.4,5.69]
[1617706546319,2.90695,2114.5,2114.2,94.18915]
[1617706546519,2.90695,2114.5,2114.3,5.69]
[1617706546720,2.90695,2114.5,2114.4,5.69]
[1617706547220,5.63895,2114.5,2114.4,5.81]
[1617706547719,5.63895,2114.5,2114.3,5.82]
[1617706555836,58.63575,2114.5,2114.3,5.82]
[1617706557436,58.63575,2114.5,2114.4,2.90695]
[1617706557638,58.63575,2114.5,2114.4,4.90695]
[1617706557937,2.90695,2114.5,2114.4,10.74695]
[1617706558641,2.90695,2114.5,2114.4,5.84]
[1617706559041,2.90695,2114.5,2114.3,5.73]
[1617706559341,2.90695,2114.5,2114.4,5.75]
[1617706559744,2.90695,2114.5,2114.3,5.8]
[1617706559941,81.95775,2114.5,2114.4,5.95]
[1617706560360,81.95775,2114.5,2114.3,5.77]
[1617706560549,81.95775,2114.5,2114.4,5.68]
[1617706560944,81.95775,2114.5,2114.3,5.81]
[1617706561248,82.89655,2114.5,2114.4,5.74]
[1617706561447,82.89655,2114.5,2114.3,5.7]
[1617706561850,81.95775,2114.5,2114.3,5.7]
[1617706563755,82.89655,2114.5,2114.3,5.7]
[1617706563952,81.95775,2114.5,2114.3,5.7]
[1617706564951,82.89685,2114.5,2114.3,5.7]
[1617706565151,81.95775,2114.5,2114.3,5.7]
[1617706566254,82.90515,2114.5,2114.3,5.7]
[1617706567953,81.95775,2114.5,2114.3,5.7]
[1617706568155,2.90695,2114.5,2114.3,5.7]
[1617706569354,32.90695,2114.5,2114.3,4.8223]
[1617706569577,32.90695,2114.5,2113.2,12.5974]
[1617706569769,32.90695,2114.5,2113.4,5.71]
[1617706569959,2.0,2114.4,2113.4,5.71]
[1617706570156,32.0,2114.4,2113.2,12.5974]
[1617706570357,32.0,2114.4,2113.5,5.4254]
[1617706570564,32.0,2114.4,2112.8,2.571]
[1617706570867,32.0,2114.4,2113.6,0.78]
[1617706571157,32.0,2114.4,2112.4,0.04]
[1617706571359,32.0,2114.4,2113.7,1.0371]
[1617706571558,2.90695,2113.8,2113.0,0.0524]
[1617706571763,75.6807,2113.0,2112.4,0.8243]
[1617706571959,32.6468,2113.0,2112.3,13.7656]
[1617706572158,2.6468,2113.0,2112.5,5.73]
[1617706572660,2.6468,2113.0,2112.3,13.7656]
[1617706572859,2.6468,2113.0,2112.6,5.93]
[1617706573059,30.0,2113.6,2112.4,5.9]
[1617706573459,30.0,2113.6,2112.7,5.76]
[1617706573660,34.97635,2112.8,2112.4,5.84]
[1617706574176,35.92115,2112.8,2112.7,5.68]
[1617706574371,35.92115,2112.8,2112.4,5.86]
[1617706574661,35.92115,2112.8,2112.7,5.598]
[1617706574960,35.92115,2112.8,2112.4,5.68]
[1617706575460,35.92115,2112.8,2112.3,13.7656]
[1617706575461,35.92115,2112.8,2112.7,5.71]
[1617706575762,35.92115,2112.8,2112.4,5.81]
[1617706575960,35.92115,2112.8,2112.7,5.76]
[1617706576161,35.92115,2112.8,2112.3,13.7656]
[1617706576362,35.92115,2112.8,2112.4,5.68]
[1617706576667,35.92115,2112.8,2112.7,5.9]
[1617706576867,35.92115,2112.8,2112.4,5.87]
[1617706577070,35.92115,2112.8,2112.7,5.83]
[1617706577478,35.92115,2112.8,2112.4,5.78]
[1617706577669,2.90695,2112.5,2112.3,13.7656]
[1617706577970,2.90695,2112.5,2112.4,5.9]
[1617706578768,67.3697,2112.4,2112.3,9.9817]
[1617706579071,35.67205,2112.5,2112.3,9.9817]
[1617706579282,35.67205,2112.5,2112.4,5.71]
[1617706579468,5.67205,2112.5,2112.4,5.71]
[1617706580169,2.90695,2112.5,2112.4,5.71]
[1617706584776,5.23925,2112.5,2112.4,5.71]
[1617706585975,2.90695,2112.5,2112.4,5.71]
[1617706587678,5.16475,2112.5,2112.4,5.71]
[1617706590787,5.16475,2112.5,2112.4,5.4533]
[1617706590983,35.16475,2112.5,2112.4,5.4533]
[1617706592583,102.66575,2112.5,2112.4,5.4533]
[1617706594386,72.66575,2112.5,2112.4,5.4533]
[1617706599199,102.66575,2112.5,2112.4,5.4533]
[1617706599790,72.66575,2112.5,2112.4,5.4533]
[1617706602292,102.66575,2112.5,2112.4,5.4533]
[1617706602795,103.60645,2112.5,2112.4,5.4533]
[1617706603494,102.66575,2112.5,2112.4,5.4533]
[1617706605996,102.66575,2112.5,2112.4,7.435]
[1617706606599,102.66575,2112.5,2112.4,15.435]
[1617706607902,5.16475,2112.5,2112.4,15.435]
[1617706608301,2.90695,2112.5,2112.4,15.435]
[1617706609106,2.90695,2112.5,2112.4,15.2689]
[1617706610006,5.83065,2112.5,2112.4,15.2689]
[1617706611343,35.83065,2112.5,2112.4,15.2689]
[1617706611507,35.83065,2112.5,2112.4,13.9167]
[1617706611708,35.83065,2112.5,2112.4,11.5419]
[1617706611709,37.83065,2112.5,2112.4,11.5419]
[1617706611909,37.83065,2112.5,2112.4,11.2009]
[1617706612208,37.83065,2112.5,2112.4,10.0695]
[1617706612510,37.83065,2112.5,2112.4,9.5908]
[1617706612821,37.83065,2112.5,2112.4,7.946]
[1617706613214,37.83065,2112.5,2112.4,6.7687]
[1617706613414,37.83065,2112.5,2111.0,12.6247]
[1617706613712,37.83065,2112.5,2111.0,11.7133]
[1617706613912,2.90695,2111.1,2111.0,12.6622]
[1617706614113,35.49445,2111.1,2111.0,9.4416]
[1617706614335,37.49445,2111.1,2111.0,6.8389]
[1617706614514,37.49445,2111.1,2111.0,2.4888]
[1617706614716,37.49445,2111.1,2111.0,0.7098]
[1617706615114,38.45465,2111.1,2109.9,12.4708]
[1617706615518,38.45465,2111.1,2111.0,5.82]
[1617706615714,38.45465,2111.1,2110.0,5.97]
[1617706616014,38.45465,2111.1,2109.9,12.4708]
[1617706616015,5.11555,2110.1,2109.9,12.4708]
[1617706616214,5.11555,2110.1,2110.0,5.84]
[1617706616715,35.11555,2110.1,2110.0,5.84]
[1617706617817,35.11555,2110.1,2110.0,5.759]
[1617706618019,36.06345,2110.1,2110.0,4.1082]
[1617706618418,36.06345,2110.1,2108.0,2.0]
[1617706618718,38.06345,2110.1,2110.0,2.4219]
[1617706618919,38.06345,2110.1,2107.4,0.69]
[1617706619321,38.06345,2110.1,2110.0,3.35]
[1617706619520,38.06345,2110.1,2107.2,0.9601]
[1617706619820,38.06345,2110.1,2107.5,2.90695]
[1617706619821,35.1565,2110.1,2107.5,2.90695]
[1617706620219,35.1565,2110.1,2107.6,5.94]
[1617706620525,35.1565,2110.1,2107.7,2.0]
[1617706621021,35.1565,2110.1,2107.9,2.0]
[1617706621623,35.1565,2110.1,2108.1,2.0]
[1617706621828,2.90695,2108.2,2108.1,4.90695]
[1617706622221,2.90695,2108.2,2108.1,8.30695]
[1617706623427,2.90695,2108.2,2108.1,5.4]
[1617706623633,2.90695,2108.2,2108.1,3.4]
[1617706624329,2.90695,2108.2,2107.8,2.0]
[1617706624647,2.90695,2108.2,2108.1,5.85]
[1617706624839,2.90695,2108.2,2107.9,3.33]
[1617706625229,2.90695,2108.2,2108.1,5.84]
[1617706625434,2.90695,2108.2,2107.9,5.79]
[1617706625733,2.90695,2108.2,2108.1,5.95]
[1617706626129,2.90695,2108.2,2108.0,2.90695]
[1617706626330,2.90695,2108.2,2108.1,5.92]
[1617706626631,2.90695,2108.2,2108.1,12.9621]
[1617706627030,2.90695,2108.2,2108.1,18.8321]
[1617706627931,2.90695,2108.3,2108.1,21.73905]
[1617706628530,2.90695,2108.3,2108.2,2.0]
[1617706628831,2.90695,2108.3,2108.2,7.7]
[1617706629731,65.0032,2108.6,2108.2,7.7]
[1617706629931,2.90695,2108.6,2108.5,2.90695]
[1617706630133,2.90695,2108.6,2108.5,4.90695]
[1617706630331,2.90695,2108.6,2108.5,10.81695]
[1617706630833,2.90695,2108.6,2108.5,7.91]
[1617706631732,2.90695,2108.6,2108.5,5.91]
[1617706632134,2.90695,2108.6,2108.3,5.9]
[1617706632641,2.90695,2108.6,2108.5,5.69]
[1617706632835,2.90695,2108.6,2108.3,5.74]
[1617706633135,2.90695,2108.6,2108.2,12.6841]
[1617706633136,2.90695,2108.6,2108.5,5.96]
[1617706633341,2.90695,2108.6,2108.3,5.78]
[1617706633635,2.90695,2108.6,2108.5,5.78]
[1617706633835,2.90695,2108.6,2108.3,5.8]